bitfinex/quotes_SOLUSD_20240530
["timestamp","ask_amount","ask_price","bid_price","bid_amount"]
[1717081960138,6.8,168.15,168.12,100.2239]
[1717081960337,6.8,168.15,168.12,98.27]
[1717081960531,6.8,168.15,168.12,100.2239]
[1717081961567,6.8,168.14,168.12,100.2239]
[1717081962260,6.8,168.14,168.13,19.7239]
[1717081962451,6.2362,168.22,168.13,100.2239]
[1717081962648,6.8,168.14,168.13,55.2239]
[1717081962844,6.8,168.15,168.13,100.2239]
[1717081963159,6.8,168.15,168.14,98.27]
[1717081963365,6.8,168.15,168.14,53.27]
[1717081963562,6.8,168.15,168.14,98.27]
[1717081973455,6.8,168.15,168.14,53.27]
[1717081973655,6.8,168.15,168.12,53.36]
[1717081973851,6.8,168.16,168.12,53.36]
[1717081973852,6.2362,168.22,168.12,53.36]
[1717081974379,6.8,168.13,168.12,53.36]
[1717081977066,6.8,168.13,168.12,98.36]
[1717081979581,6.8,168.13,168.12,80.5]
[1717081982383,6.8,168.13,168.09,35.5]
[1717081982584,34.0035,168.16,168.1,80.5]
[1717081982787,6.8,168.11,168.1,80.5]
[1717081990195,6.8,168.11,168.1,35.5]
[1717081990394,6.8,168.11,168.06,53.36]
[1717081990595,34.0035,168.16,168.07,80.5]
[1717081990903,6.8,168.08,168.07,35.5]
[1717081991068,34.0035,168.16,168.07,35.5]
[1717081991273,6.8,168.08,168.07,35.5]
[1717081992402,6.8,168.08,168.07,80.5]
[1717081992787,17.7333,168.14,168.07,80.5]
[1717081993092,17.7333,168.14,168.08,45.0]
[1717081993293,17.7333,168.14,168.08,98.36]
[1717081993482,17.7333,168.14,168.1,35.5]
[1717081993684,6.8,168.11,168.1,35.5]
[1717081993919,6.8,168.11,168.1,80.5]
[1717081995378,6.8035,168.16,168.1,80.5]
[1717081995573,6.8035,168.16,168.11,80.5]
[1717081995574,6.7142,168.15,168.11,80.5]
[1717081995778,6.8,168.12,168.11,80.5]
[1717081997498,6.8,168.12,168.11,140.5]
[1717081997882,6.8801,168.19,168.11,140.5]
[1717081998085,6.8801,168.19,168.14,35.5]
[1717081998390,6.8801,168.19,168.15,45.0]
[1717081998590,6.8,168.16,168.15,45.0]
[1717081998888,6.8,168.16,168.15,80.5]
[1717081999085,6.8801,168.19,168.15,80.5]
[1717081999300,6.8,168.16,168.15,80.5]
[1717082003200,13.6,168.16,168.12,35.5]
[1717082003416,13.469,168.16,168.13,80.5]
[1717082003621,6.8,168.14,168.13,80.5]
[1717082003794,24.5613,168.2,168.13,80.5]
[1717082003995,6.8,168.14,168.13,80.5]
[1717082004411,27.2,168.16,168.13,80.5]
[1717082004797,24.5613,168.2,168.13,158.36]
[1717082004996,6.8,168.14,168.13,158.36]
[1717082005407,6.8,168.14,168.13,80.5]
[1717082008331,6.8,168.14,168.09,60.0]
[1717082008332,6.8,168.14,168.1,35.5]
[1717082008505,14.1288,168.16,168.11,80.5]
[1717082008705,6.8,168.12,168.11,80.5]
[1717082014320,6.8,168.12,168.1,35.5]
[1717082014533,6.8,168.11,168.1,35.5]
[1717082015339,13.4855,168.11,168.06,35.5]
[1717082015508,6.8,168.07,168.06,35.5]
[1717082015922,6.8,168.07,168.01,60.0]
[1717082016237,6.8,168.08,168.02,35.5]
[1717082016238,6.8,168.04,168.02,35.5]
[1717082016418,6.8,168.04,168.02,53.36]
[1717082016732,6.8,168.03,168.02,53.36]
[1717082017128,6.8,168.03,168.02,35.5]
[1717082019046,6.8,168.03,168.02,80.5]
[1717082020043,6.8,168.03,168.0,35.5]
[1717082020341,27.2,168.08,168.01,80.5]
[1717082020535,6.8,168.02,168.01,80.5]
[1717082026957,6.8,168.02,168.0,35.5]
[1717082027124,6.8,168.01,168.0,35.5]
[1717082027525,6.8,168.01,167.98,35.5]
[1717082027724,6.6192,168.05,167.98,35.5]
[1717082028234,6.8,167.99,167.98,35.5]
[1717082028445,6.8,167.99,167.98,80.5]
[1717082028736,6.6192,168.05,168.0,35.5]
[1717082028914,6.6192,168.05,168.01,80.5]
[1717082029115,6.8,168.02,168.01,80.5]
[1717082029337,6.8,168.02,168.01,98.36]
[1717082029533,16.6197,168.08,168.01,158.36]
[1717082029852,27.2,168.08,168.04,35.5]
[1717082030038,27.2,168.08,168.05,80.5]
[1717082030349,6.8,168.06,168.02,35.5]
[1717082030547,6.8,168.03,168.02,35.5]
[1717082030845,6.8,168.03,168.02,80.5]
[1717082031737,6.8,168.03,167.99,35.5]
[1717082031934,34.52,168.08,168.0,45.0]
[1717082032242,6.8,168.01,167.99,35.5]
[1717082032433,6.8,168.0,167.99,35.5]
[1717082032742,6.8,168.0,167.99,80.5]
[1717082034746,6.8,168.0,167.96,35.5]
[1717082034747,13.6,168.0,167.96,35.5]
[1717082034944,6.8,167.97,167.96,35.5]
[1717082036730,6.8,167.97,167.94,35.5]
[1717082036932,13.6172,168.0,167.95,80.5]
[1717082037127,6.8,167.96,167.95,80.5]
[1717082038548,6.8,167.97,167.95,158.36]
[1717082038931,6.8,167.98,167.95,158.36]
[1717082039346,6.8,167.97,167.95,158.36]
[1717082039653,6.8,167.96,167.95,158.36]
[1717082042747,24.6086,168.04,167.95,158.36]
[1717082042944,6.8,167.98,167.95,158.36]
[1717082044045,24.6086,168.04,167.95,158.36]
[1717082044252,6.8,167.98,167.95,158.36]
[1717082045034,24.6086,168.04,167.99,60.0]
[1717082045238,6.8,168.01,168.0,98.36]
[1717082045546,6.8,168.02,168.01,95.5]
[1717082045751,52.0812,168.08,168.01,158.36]
[1717082045953,6.8,168.02,168.01,53.36]
[1717082046130,6.8,168.02,168.01,80.5]
[1717082046334,20.7659,168.02,167.97,35.5]
[1717082046561,6.8,168.0,167.98,45.0]
[1717082046854,6.8,167.99,167.97,35.5]
[1717082047041,6.8,167.98,167.97,35.5]
[1717082047445,6.8,167.98,167.95,17.86]
[1717082047446,6.8,167.98,167.96,35.5]
[1717082047645,6.8,167.97,167.96,35.5]
[1717082048561,6.8,167.97,167.96,80.5]
[1717082048737,6.8,167.97,167.96,158.36]
[1717082050061,6.9664,168.05,167.99,35.5]
[1717082050269,6.9664,168.05,168.01,35.5]
[1717082050561,6.8,168.02,168.01,35.5]
[1717082050759,6.8,168.02,168.01,80.5]
[1717082050956,6.9664,168.05,168.01,80.5]
[1717082051259,34.2863,168.08,168.03,35.5]
[1717082051458,6.8,168.04,168.03,35.5]
[1717082051658,6.8,168.04,168.03,80.5]
[1717082052345,34.2863,168.08,168.04,60.0]
[1717082052552,27.2,168.08,168.05,80.5]
[1717082052738,6.8,168.06,168.05,80.5]
[1717082053855,6.8,168.06,168.05,98.36]
[1717082057257,23.6475,168.14,168.07,35.5]
[1717082057440,23.6475,168.14,168.08,80.5]
[1717082057746,6.8,168.09,168.08,80.5]
[1717082059548,23.6475,168.14,168.08,80.5]
[1717082059847,6.8,168.09,168.08,140.5]
[1717082061366,6.8,168.09,168.08,158.36]
[1717082064457,7.0569,168.14,168.08,158.36]
[1717082064774,6.8,168.09,168.08,158.36]
[1717082066575,6.8,168.1,168.09,113.36]
[1717082066954,6.8,168.1,168.09,158.36]
[1717082067867,5.3,168.1,168.09,158.36]
[1717082068060,6.8,168.1,168.09,158.36]
[1717082071755,25.1092,168.18,168.09,158.36]
[1717082071959,7.0997,168.15,168.11,35.5]
[1717082072164,6.8,168.12,168.11,35.5]
[1717082072476,6.8,168.12,168.11,80.5]
[1717082074574,6.8402,168.11,168.08,35.5]
[1717082074776,6.8,168.09,168.08,35.5]
[1717082075774,6.8,168.09,168.06,53.36]
[1717082075966,6.8,168.09,168.08,35.5]
[1717082076165,6.8,168.09,168.08,80.5]
[1717082077080,6.8,168.09,168.08,98.36]
[1717082077376,6.8,168.09,168.08,158.36]
[1717082078666,6.8,168.09,168.08,80.5]
[1717082081578,13.6,168.09,168.06,35.5]
[1717082081761,6.8,168.08,168.07,45.0]
[1717082081963,13.6,168.08,168.06,35.5]
[1717082082160,6.8,168.07,168.06,35.5]
[1717082082361,6.8,168.07,168.06,80.5]
[1717082088595,27.2,168.08,168.06,80.5]
[1717082096577,6.8,168.07,168.04,35.5]
[1717082096892,6.8,168.05,168.04,35.5]
[1717082097475,6.8,168.05,168.03,35.5]
[1717082097675,6.8,168.04,168.03,35.5]
[1717082098401,6.8,168.04,168.03,80.5]
[1717082099092,6.8,168.04,168.03,98.36]
[1717082099398,27.2,168.08,168.05,35.5]
[1717082099603,6.8,168.06,168.05,35.5]
[1717082099781,6.8,168.06,168.05,80.5]
[1717082101390,6.8,168.06,168.04,35.5]
[1717082101580,6.8,168.05,168.04,35.5]
[1717082101772,6.8,168.05,168.04,80.5]
[1717082101971,19.41167682,168.15,168.04,158.36]
[1717082102176,42.0988126,168.14,168.06,95.5]
[1717082102395,6.8,168.07,168.06,95.5]
[1717082102604,6.8,168.07,168.06,140.5]
[1717082103309,6.8,168.07,168.06,158.36]
[1717082104795,24.9409,168.14,168.09,35.5]
[1717082104998,24.9409,168.14,168.1,45.0]
[1717082105205,6.8,168.11,168.1,45.0]
[1717082105404,6.8,168.11,168.1,80.5]
[1717082106888,14.0709,168.11,168.08,35.5]
[1717082107189,13.6,168.09,168.08,35.5]
[1717082107398,13.6,168.09,168.08,80.5]
[1717082108015,6.8,168.09,168.08,80.5]
[1717082108198,7.2709,168.11,168.08,80.5]
[1717082108409,6.8496,168.15,168.08,80.5]
[1717082108707,6.8,168.09,168.08,80.5]
[1717082109214,6.8496,168.15,168.1,35.5]
[1717082109392,6.8496,168.15,168.11,45.0]
[1717082109591,6.8,168.12,168.11,45.0]
[1717082109915,18.3118,168.18,168.11,140.5]
[1717082110089,27.2,168.16,168.11,140.5]
[1717082110293,6.9024,168.19,168.11,140.5]
[1717082110294,6.9024,168.19,168.11,158.36]
[1717082110505,6.8,168.12,168.11,158.36]
[1717082111208,27.2,168.16,168.14,35.5]
[1717082111415,6.8,168.15,168.14,35.5]
[1717082111709,6.8,168.15,168.14,80.5]
[1717082113583,7.201,168.2,168.16,35.5]
[1717082113901,6.6817,168.24,168.18,35.5]
[1717082114094,6.8,168.19,168.18,35.5]
[1717082114294,6.8,168.19,168.18,80.5]
[1717082114494,6.8,168.19,168.16,35.5]
[1717082114805,6.8,168.17,168.16,35.5]
[1717082115120,6.8,168.17,168.16,80.5]
[1717082115287,13.6,168.17,168.16,80.5]
[1717082115717,13.6,168.17,168.13,35.5]
[1717082115898,6.8,168.16,168.14,80.5]
[1717082116201,6.8,168.15,168.14,158.36]
[1717082116690,6.8,168.15,168.11,53.36]
[1717082116993,6.8,168.12,168.11,53.36]
[1717082118128,6.9867,168.2,168.15,35.5]
[1717082118720,6.8,168.16,168.15,35.5]
[1717082118889,6.8,168.16,168.15,80.5]
[1717082119217,17.3824,168.21,168.17,35.5]
[1717082119506,24.494,168.21,168.17,35.5]
[1717082119708,24.494,168.21,168.18,80.5]
[1717082119915,6.8,168.19,168.18,80.5]
[1717082120303,7.1116,168.21,168.18,80.5]
[1717082120706,6.6264,168.25,168.18,140.5]
[1717082120916,6.8,168.19,168.18,140.5]
[1717082121793,6.8,168.19,168.18,80.5]
[1717082122304,6.8,168.19,168.17,35.5]
[1717082122506,6.8,168.18,168.17,35.5]
[1717082122688,6.8,168.18,168.17,80.5]
[1717082123995,27.2,168.24,168.17,80.5]
[1717082124203,6.8,168.18,168.17,80.5]
[1717082125418,6.6264,168.25,168.17,98.36]
[1717082125601,34.1666,168.24,168.19,35.5]
[1717082125919,6.8,168.2,168.19,35.5]
[1717082126103,6.8,168.2,168.19,80.5]
[1717082127291,6.8,168.2,168.19,98.36]
[1717082127703,27.2,168.24,168.21,53.36]
[1717082127921,27.2,168.24,168.22,80.5]
[1717082128117,6.8,168.23,168.22,80.5]
[1717082128507,6.8,168.23,168.22,140.5]
[1717082129419,6.8,168.23,168.22,158.36]
[1717082130691,0.8276984,168.27,168.25,35.5]
[1717082130932,0.8276984,168.27,168.24,77.86]
[1717082130933,0.8276984,168.27,168.26,80.5]
[1717082131105,7.6276984,168.27,168.26,80.5]
[1717082131420,0.8276984,168.27,168.26,140.5]
[1717082131601,7.6276984,168.27,168.26,140.5]
[1717082132336,7.6276984,168.27,168.26,158.36]
[1717082132627,0.8276984,168.27,168.26,158.36]
[1717082132916,7.6276984,168.27,168.26,158.36]
[1717082133934,19.41167682,168.37,168.3,17.86]
[1717082134119,19.41167682,168.37,168.31,80.5]
[1717082134807,6.8,168.32,168.31,158.36]
[1717082135191,6.8,168.32,168.31,98.36]
[1717082135416,13.6,168.32,168.31,98.36]
[1717082135607,13.6,168.32,168.31,158.36]
[1717082136128,13.6,168.32,168.31,80.5]
[1717082136833,6.8,168.32,168.31,98.36]
[1717082137002,6.9564,168.39,168.33,53.36]
[1717082137196,6.9564,168.39,168.34,80.5]
[1717082137397,46.61167682,168.4,168.34,80.5]
[1717082137597,6.8,168.35,168.34,80.5]
[1717082137904,46.61167682,168.4,168.34,35.5]
[1717082138108,26.32747682,168.4,168.35,80.5]
[1717082138320,6.8,168.36,168.35,140.5]
[1717082138630,6.8,168.36,168.35,105.0]
[1717082140101,6.8,168.36,168.35,122.86]
[1717082140634,27.2,168.4,168.35,122.86]
[1717082140929,6.8,168.36,168.35,122.86]
[1717082141102,27.2,168.4,168.35,122.86]
[1717082141308,6.8,168.36,168.35,122.86]
[1717082141910,6.8,168.36,168.35,62.86]
[1717082142104,6.8,168.36,168.35,45.0]
[1717082142306,6.8,168.36,168.31,60.0]
[1717082142506,6.8,168.32,168.31,60.0]
[1717082143128,27.2,168.4,168.33,77.86]
[1717082143320,6.8,168.34,168.33,77.86]
[1717082143630,27.2,168.4,168.33,77.86]
[1717082143930,16.8303,168.43,168.36,77.86]
[1717082144115,27.2,168.4,168.37,45.0]
[1717082144425,6.8,168.38,168.37,45.0]
[1717082144618,16.8303,168.43,168.37,62.86]
[1717082144822,6.8,168.38,168.37,62.86]
[1717082145534,8.0026984,168.44,168.38,77.86]
[1717082145731,27.2,168.4,168.39,45.0]
[1717082145935,34.0,168.4,168.39,45.0]
[1717082146113,8.0026984,168.44,168.39,45.0]
[1717082146430,6.8,168.4,168.39,45.0]
[1717082146615,8.0026984,168.44,168.39,62.86]
[1717082146925,6.8,168.4,168.39,62.86]
[1717082147297,8.0026984,168.44,168.4,60.0]
[1717082147504,0.8276984,168.44,168.41,45.0]
[1717082147906,0.8276984,168.44,168.42,60.0]
[1717082148112,0.8276984,168.44,168.43,45.0]
[1717082148514,7.6276984,168.44,168.43,45.0]
[1717082148738,0.8276984,168.44,168.43,45.0]
[1717082149227,7.6276984,168.44,168.43,45.0]
[1717082150230,0.8276984,168.44,168.43,45.0]
[1717082150626,0.8276984,168.44,168.43,62.86]
[1717082152643,0.8276984,168.44,168.39,2.0022]
[1717082152644,0.8276984,168.44,168.41,17.86]
[1717082153015,0.8276984,168.44,168.42,77.86]
[1717082153921,0.8276984,168.44,168.43,64.8622]
[1717082154129,0.8276984,168.44,168.43,67.0589]
[1717082154515,20.34,168.53,168.47,77.86]
[1717082154714,20.34,168.53,168.48,62.86]
[1717082155528,26.9973,168.53,168.48,62.86]
[1717082155932,6.6573,168.53,168.48,62.86]
[1717082156130,6.6573,168.53,168.5,17.86]
[1717082156342,6.6573,168.53,168.51,45.0]
[1717082156747,6.6573,168.53,168.5,45.0]
[1717082157825,6.6573,168.53,168.47,77.86]
[1717082158048,6.6573,168.53,168.47,17.86]
[1717082158219,20.34,168.51,168.45,60.0]
[1717082159338,20.34,168.51,168.45,77.86]
[1717082160622,20.34,168.51,168.46,45.0]
[1717082160824,20.34,168.51,168.47,60.0]
[1717082161150,20.34,168.51,168.48,45.0]
[1717082161346,20.34,168.51,168.47,45.0]
[1717082161536,20.34,168.52,168.47,105.0]
[1717082161737,20.34,168.52,168.47,122.86]
[1717082162041,6.6573,168.53,168.51,60.0]
[1717082162345,6.6573,168.53,168.52,45.0]
[1717082163239,6.6573,168.53,168.49,60.0]
[1717082163431,6.6573,168.53,168.45,60.0]
[1717082163630,6.6573,168.53,168.49,60.0]
[1717082164372,6.6573,168.53,168.51,77.86]
[1717082165069,6.6573,168.53,168.52,62.86]
[1717082166548,20.34,168.58,168.52,62.86]
[1717082167070,25.9245098,168.61,168.49,17.86]
[1717082167071,20.34,168.55,168.49,17.86]
[1717082167759,20.34,168.52,168.46,60.0]
[1717082167968,20.34,168.52,168.46,77.86]
[1717082168273,20.34,168.52,168.44,60.0]
[1717082168646,20.34,168.52,168.47,60.0]
[1717082168857,20.34,168.52,168.45,60.0]
[1717082169054,20.34,168.52,168.46,17.86]
[1717082169469,20.34,168.52,168.47,77.86]
[1717082169781,20.34,168.52,168.48,45.0]
[1717082172267,20.34,168.52,168.47,122.86]
[1717082174978,20.34,168.52,168.49,60.0]
[1717082175186,20.34,168.52,168.5,45.0]
[1717082175387,27.3911,168.55,168.5,45.0]
[1717082175674,20.34,168.55,168.5,45.0]
[1717082176869,26.9432,168.55,168.5,45.0]
[1717082177275,7.1512,168.54,168.5,45.0]
[1717082177574,20.34,168.53,168.49,45.0]
[1717082178870,27.3956,168.53,168.49,45.0]
[1717082180378,6.77,168.5,168.49,45.0]
[1717082185092,6.77,168.5,168.49,122.86]
[1717082185394,6.77,168.52,168.51,77.86]
[1717082185564,17.8263,168.59,168.51,122.86]
[1717082185757,27.08,168.56,168.52,45.0]
[1717082185970,6.77,168.53,168.52,45.0]
[1717082187286,6.77,168.53,168.52,62.86]
[1717082187584,6.77,168.58,168.56,17.86]
[1717082187885,6.77,168.58,168.57,45.0]
[1717082188095,50.7268,168.64,168.57,45.0]
[1717082188269,50.7268,168.64,168.57,122.86]
[1717082188469,6.77,168.59,168.57,122.86]
[1717082189685,23.6468,168.64,168.57,122.86]
[1717082189886,6.77,168.59,168.57,122.86]
[1717082190099,6.7179,168.68,168.6,77.86]
[1717082190304,27.0079,168.68,168.6,122.86]
[1717082190766,6.7179,168.68,168.6,122.86]
[1717082190964,27.0079,168.68,168.6,122.86]
[1717082191575,6.7179,168.68,168.6,122.86]
[1717082192186,20.29,168.67,168.6,122.86]
[1717082193204,6.7179,168.68,168.6,122.86]
[1717082194493,6.7179,168.68,168.6,62.86]
[1717082194694,20.29,168.65,168.58,60.0]
[1717082194908,20.29,168.65,168.58,77.86]
[1717082195286,6.7179,168.68,168.58,77.86]
[1717082195486,20.29,168.66,168.58,77.86]
[1717082195688,20.29,168.63,168.55,60.0]
[1717082195917,7.7811098,168.61,168.53,60.0]
[1717082196222,7.7811098,168.61,168.55,60.0]
[1717082196620,7.7811098,168.61,168.56,17.86]
[1717082196923,1.1822098,168.61,168.57,77.86]
[1717082197596,1.1822098,168.61,168.58,45.0]
[1717082198017,1.1822098,168.61,168.6,77.86]
[1717082198219,1.1822098,168.61,168.6,122.86]
[1717082201506,1.1822098,168.61,168.6,62.86]
[1717082201824,1.1822098,168.61,168.6,122.86]
[1717082203627,1.1822098,168.61,168.6,125.0545]
[1717082203842,1.1822098,168.61,168.6,127.0442]
[1717082204331,1.1822098,168.61,168.6,122.86]
[1717082205210,1.1822098,168.61,168.6,77.86]
[1717082206508,1.1822098,168.61,168.6,122.86]
[1717082210440,1.1822098,168.61,168.57,17.86]
[1717082210731,7.7879098,168.61,168.57,17.86]
[1717082210909,6.6057,168.6,168.54,60.0]
[1717082211109,6.6057,168.6,168.52,60.0]
[1717082211306,6.6057,168.6,168.55,60.0]
[1717082211538,6.6057,168.6,168.56,17.86]
[1717082211718,6.6057,168.6,168.57,77.86]
[1717082212031,8.1086098,168.61,168.57,77.86]
[1717082212228,8.1086098,168.61,168.55,60.0]
[1717082212438,6.9264,168.6,168.56,45.0]
[1717082212625,6.9264,168.6,168.56,62.86]
[1717082212934,8.1134098,168.61,168.52,60.0]
[1717082213633,8.1134098,168.61,168.52,77.86]
[1717082213634,20.29,168.6,168.52,77.86]
[1717082213814,20.29,168.6,168.52,17.86]
[1717082214216,20.29,168.6,168.5,60.0]
[1717082214521,20.29,168.57,168.5,60.0]
[1717082215933,20.29,168.51,168.44,60.0]
[1717082216228,24.3449,168.56,168.43,17.86]
[1717082216436,20.29,168.51,168.43,17.86]
[1717082216621,20.29,168.51,168.42,77.86]
[1717082216820,6.9118,168.5,168.42,77.86]
[1717082217425,6.9118,168.5,168.41,17.86]
[1717082218834,6.9118,168.5,168.42,45.0]
[1717082219960,17.8373,168.49,168.42,45.0]
[1717082220155,20.29,168.48,168.38,77.86]
[1717082220454,20.29,168.48,168.38,17.86]
[1717082220681,17.8373,168.49,168.35,60.0]
[1717082220682,20.29,168.45,168.35,60.0]
[1717082221041,20.29,168.45,168.36,17.86]
[1717082221944,7.1619,168.44,168.32,60.0]
[1717082222151,7.1619,168.44,168.33,17.86]
[1717082222640,20.29,168.42,168.33,17.86]
[1717082222962,18.0557,168.41,168.32,60.0]
[1717082223132,18.0557,168.41,168.31,17.86]
[1717082223329,18.0557,168.41,168.3,60.0]
[1717082223657,20.29,168.39,168.28,60.0]
[1717082224358,7.0709,168.38,168.26,60.0]
[1717082224943,7.0709,168.38,168.28,60.0]
[1717082225346,7.0709,168.38,168.27,17.86]
[1717082226258,7.0709,168.38,168.29,17.86]
[1717082226456,7.0709,168.38,168.27,17.86]
[1717082226964,20.29,168.36,168.28,60.0]
[1717082227181,20.29,168.36,168.27,17.86]
[1717082227664,20.29,168.36,168.25,17.86]
[1717082228047,20.29,168.36,168.26,77.86]
[1717082228234,20.29,168.36,168.28,60.0]
[1717082228639,7.0709,168.38,168.3,77.86]
[1717082229064,7.0709,168.38,168.31,45.0]
[1717082229243,7.0709,168.38,168.31,62.86]
[1717082229449,7.0709,168.38,168.34,77.86]
[1717082229662,18.0557,168.41,168.35,45.0]
[1717082229840,20.29,168.43,168.37,60.0]
[1717082230038,1.1822098,168.61,168.38,45.0]
[1717082230039,23.9026,168.45,168.38,45.0]
[1717082230963,23.9026,168.45,168.4,60.0]
[1717082231146,23.9026,168.45,168.41,45.0]
[1717082231348,6.95,168.45,168.41,45.0]
[1717082232566,24.7572,168.45,168.41,45.0]
[1717082233239,7.0185,168.47,168.43,77.86]
[1717082233444,23.5795,168.49,168.44,45.0]
[1717082234160,43.8695,168.53,168.45,77.86]
[1717082234338,43.8695,168.53,168.44,45.0]
[1717082234339,23.5107,168.52,168.48,60.0]
[1717082234545,23.5107,168.52,168.49,45.0]
[1717082234764,10.73230784,168.59,168.49,45.0]
[1717082234765,23.5107,168.56,168.5,77.86]
[1717082235070,23.5107,168.56,168.51,45.0]
[1717082235974,6.682,168.56,168.51,45.0]
[1717082236276,6.682,168.56,168.51,62.86]
[1717082236475,6.682,168.56,168.52,60.0]
[1717082236775,30.22090678,168.6,168.53,45.0]
[1717082237852,30.22090678,168.6,168.54,60.0]
[1717082238052,24.0527,168.6,168.55,45.0]
[1717082238750,6.6728,168.6,168.56,60.0]
[1717082239063,24.878,168.64,168.57,45.0]
[1717082240053,6.6582,168.62,168.55,17.86]
[1717082240676,7.8404098,168.61,168.56,45.0]
[1717082241057,7.8404098,168.61,168.56,122.86]
[1717082242155,1.1822098,168.61,168.56,122.86]
[1717082242772,7.8404098,168.61,168.56,122.86]
[1717082243880,6.694,168.6,168.51,60.0]
[1717082244085,6.694,168.6,168.49,60.0]
[1717082244461,6.694,168.6,168.47,60.0]
[1717082244857,6.694,168.6,168.47,77.86]
[1717082245559,6.694,168.6,168.46,17.86]
[1717082245871,6.694,168.6,168.45,77.86]
[1717082246074,45.0,168.59,168.43,60.0]
[1717082246980,45.0,168.59,168.44,17.86]
[1717082247282,45.0,168.59,168.45,60.0]
[1717082247582,45.0,168.59,168.43,60.0]
[1717082248161,45.0,168.59,168.44,17.86]
[1717082248862,6.694,168.6,168.45,77.86]
[1717082249385,10.73230784,168.59,168.46,45.0]
[1717082250372,6.1606699,168.58,168.46,45.0]
[1717082251489,30.6704,168.57,168.46,45.0]
[1717082251685,30.6704,168.57,168.45,45.0]
[1717082251985,30.6704,168.57,168.44,45.0]
[1717082252188,6.9804,168.57,168.44,45.0]
[1717082252495,17.0083,168.56,168.44,45.0]
[1717082252788,17.0083,168.56,168.43,62.86]
[1717082253665,17.0083,168.56,168.45,60.0]
[1717082253901,17.0083,168.56,168.46,45.0]
[1717082254189,17.0083,168.56,168.47,77.86]
[1717082254485,17.0083,168.56,168.48,45.0]
[1717082257497,17.0083,168.56,168.49,77.86]
[1717082257702,17.0083,168.56,168.5,45.0]
[1717082259070,17.0083,168.56,168.49,45.0]
[1717082259273,17.0083,168.56,168.48,45.0]